bitfinex/quotes_BTCUSD_20260127
["timestamp","ask_amount","ask_price","bid_price","bid_amount"]
[1769505383283,0.0241517,88076.0,88059.0,0.02245954]
[1769505384704,0.0241517,88076.0,88059.0,0.42034894]
[1769505385670,0.0241517,88076.0,88060.0,0.01135589]
[1769505385874,0.0241517,88076.0,88060.0,0.39788927]
[1769505386922,0.0241517,88076.0,88062.0,0.01135563]
[1769505387123,0.0241517,88076.0,88062.0,0.39788901]
[1769505387319,0.0241517,88076.0,88063.0,0.0113555]
[1769505387541,0.0241517,88076.0,88065.0,0.01135524]
[1769505387992,0.0241517,88076.0,88064.0,0.01135537]
[1769505388694,0.0241517,88076.0,88065.0,0.01135524]
[1769505389426,0.38789438,88083.0,88070.0,0.0113546]
[1769505389629,0.11672,88085.0,88070.0,0.34942403]
[1769505389834,0.0002569,88090.0,88077.0,0.0113537]
[1769505390010,0.0002569,88090.0,88078.0,0.01135357]
[1769505390418,0.0002569,88090.0,88076.0,0.38653338]
[1769505390419,0.0002569,88090.0,88076.0,0.39788721]
[1769505390856,0.0002569,88090.0,88077.0,0.0113537]
[1769505391066,0.0002569,88090.0,88080.0,0.01135331]
[1769505391272,0.0002569,88090.0,88081.0,0.01135318]
[1769505391490,0.0002569,88090.0,88080.0,0.38653338]
[1769505391697,0.0002569,88090.0,88080.0,0.39788669]
[1769505391854,0.0002569,88090.0,88080.0,0.38653338]
[1769505392061,0.38789438,88096.0,88083.0,0.01135292]
[1769505392262,0.38789438,88096.0,88081.0,0.01135318]
[1769505392263,0.02268652,88098.0,88082.0,0.01135305]
[1769505392461,0.0002569,88105.0,88088.0,0.01135228]
[1769505392462,0.02268652,88104.0,88088.0,0.01135228]
[1769505392669,0.02268652,88104.0,88091.0,0.01135189]
[1769505393251,0.02268652,88104.0,88090.0,0.01135202]
[1769505393604,0.02268652,88104.0,88091.0,0.38653338]
[1769505394416,0.02268652,88104.0,88087.0,0.01135241]
[1769505395116,0.02268652,88104.0,88086.0,0.41004867]
[1769505395340,0.02268652,88104.0,88078.0,0.01135357]
[1769505395341,0.02268652,88098.0,88075.0,0.01135395]
[1769505395495,0.0002569,88105.0,88078.0,0.01135357]
[1769505395496,0.02268652,88089.0,88078.0,0.01135357]
[1769505396182,0.02268652,88089.0,88075.0,0.06812261]
[1769505396183,0.02268652,88089.0,88075.0,0.01135395]
[1769505396354,0.02268652,88089.0,88077.0,0.0113537]
[1769505396690,0.02268652,88089.0,88078.0,0.01135357]
[1769505397166,0.02268652,88089.0,88080.0,0.01135331]
[1769505397333,0.02268652,88089.0,88073.0,0.01135421]
[1769505397468,0.02268652,88089.0,88075.0,0.01135395]
[1769505397678,0.02268652,88089.0,88074.0,0.01135408]
[1769505397922,0.38789438,88099.0,88078.0,0.01135357]
[1769505398149,0.38789438,88095.0,88079.0,0.01135344]
[1769505398387,0.02268652,88094.0,88081.0,0.01135318]
[1769505399471,0.02268652,88094.0,88082.0,0.01135305]
[1769505399678,0.02268652,88094.0,88083.0,0.01135292]
[1769505399981,0.33806943,88100.0,88085.0,0.01135267]
[1769505400182,0.02268652,88099.0,88085.0,0.01135267]
[1769505400410,0.02268652,88099.0,88083.0,0.05676463]
[1769505400411,0.02268652,88099.0,88081.0,0.39788656]
[1769505400614,0.02268652,88098.0,88082.0,0.01135305]
[1769505401033,0.02268652,88098.0,88083.0,0.01135292]
[1769505401240,0.02268652,88098.0,88084.0,0.00112821]
[1769505401600,0.02268652,88098.0,88084.0,0.012481]
[1769505402504,0.02268652,88098.0,88084.0,0.00112821]
[1769505402828,0.02268652,88098.0,88082.0,0.00112821]
[1769505403054,0.38789438,88098.0,88082.0,0.00112821]
[1769505403281,0.02268652,88096.0,88082.0,0.00112821]
[1769505403486,0.02268652,88095.0,88080.0,0.01135331]
[1769505403908,0.02268652,88095.0,88081.0,0.01135318]
[1769505404998,0.02268652,88095.0,88082.0,0.01135305]
[1769505405198,0.02268652,88095.0,88081.0,0.01135318]
[1769505405398,0.02268652,88095.0,88082.0,0.01135305]
[1769505405866,0.02268652,88095.0,88083.0,0.01135292]
[1769505406069,0.02268652,88095.0,88084.0,0.00112822]
[1769505409061,0.33806943,88100.0,88084.0,0.00112822]
[1769505409285,0.72596381,88100.0,88084.0,0.00112822]
[1769505409548,0.72596381,88100.0,88085.0,0.01135267]
[1769505409738,0.72596381,88100.0,88086.0,0.00112819]
[1769505409739,0.74865033,88100.0,88086.0,0.00112819]
[1769505409894,0.74865033,88100.0,88082.0,0.01135305]
[1769505410094,0.33806943,88092.0,88083.0,0.00112816]
[1769505410303,0.33806943,88092.0,88076.0,0.01135383]
[1769505410496,0.0002569,88105.0,88069.0,0.02351529]
[1769505410497,0.33806943,88089.0,88069.0,0.02351529]
[1769505410712,0.33806943,88089.0,88068.0,0.01135486]
[1769505410713,0.02268652,88088.0,88074.0,0.01135408]
[1769505410932,0.4105809,88086.0,88074.0,0.01135408]
[1769505411135,0.38789438,88086.0,88076.0,0.01135383]
[1769505411347,0.38789438,88086.0,88077.0,0.0113537]
[1769505411549,0.33806943,88090.0,88078.0,0.01135357]
[1769505411750,0.02268652,88091.0,88077.0,0.0113537]
[1769505411985,0.02268652,88091.0,88076.0,0.01135383]
[1769505412833,0.02268652,88091.0,88078.0,0.01135357]
[1769505413270,0.38789438,88094.0,88078.0,0.01135357]
[1769505413474,0.38789438,88094.0,88077.0,0.0113537]
[1769505413683,0.38789438,88094.0,88076.0,0.02351529]
[1769505413899,0.38789438,88094.0,88078.0,0.01135357]
[1769505414109,0.38789438,88094.0,88076.0,0.02351529]
[1769505415062,0.38789438,88094.0,88076.0,0.03486912]
[1769505415415,0.38789438,88094.0,88076.0,0.01135383]
[1769505415618,0.38789438,88094.0,88078.0,0.03608935]
[1769505415823,0.38789438,88094.0,88078.0,0.02473578]
[1769505416221,0.38789438,88094.0,88078.0,0.03608935]
[1769505416420,0.38789438,88094.0,88079.0,0.01135344]
[1769505416629,0.38789438,88094.0,88078.0,0.09285676]
[1769505416834,0.38789438,88094.0,88082.0,0.01135305]
[1769505417030,0.33806943,88100.0,88082.0,0.01135305]
[1769505417252,0.37508805,88099.0,88084.0,0.01135279]
[1769505418079,0.37508805,88099.0,88086.0,0.02473578]
[1769505418705,0.37508805,88099.0,88086.0,0.08149817]
[1769505418908,0.3969841,88103.0,88087.0,0.02473578]
[1769505419105,0.3969841,88103.0,88087.0,0.03608819]
[1769505419310,0.37508805,88103.0,88089.0,0.02473578]
[1769505419451,0.37508805,88103.0,88087.0,0.01135241]
[1769505419452,0.0002569,88105.0,88092.0,0.02473578]
[1769505419657,0.0002569,88105.0,88092.0,0.03608754]
[1769505419857,0.0002569,88105.0,88094.0,0.01135151]
[1769505420093,0.0002569,88105.0,88095.0,0.01135138]
[1769505420495,0.0002569,88105.0,88093.0,0.03608741]
[1769505420819,0.0002569,88105.0,88095.0,0.01135138]
[1769505421021,0.0002569,88105.0,88094.0,0.01135151]
[1769505421171,0.0002569,88105.0,88093.0,0.03608741]
[1769505421875,0.0002569,88105.0,88093.0,0.02473578]
[1769505422077,0.0002569,88105.0,88094.0,0.02473578]
[1769505423367,0.0002569,88105.0,88095.0,0.02473578]
[1769505423972,0.0002569,88105.0,88095.0,0.03608716]
[1769505424126,0.0002569,88105.0,88095.0,0.02473578]
[1769505424330,0.0002569,88105.0,88094.0,0.01135151]
[1769505424331,0.0002569,88105.0,88098.0,0.02473578]
[1769505424526,0.0002569,88105.0,88100.0,0.02473578]
[1769505424823,0.0002569,88105.0,88100.0,0.02462205]
[1769505425436,0.37508805,88115.0,88100.0,0.01135073]
[1769505425605,0.37508805,88115.0,88100.0,0.02473578]
[1769505426226,0.37508805,88115.0,88100.0,0.01135073]
[1769505426431,0.37408805,88115.0,88103.0,0.01135035]
[1769505426632,0.46336654,88120.0,88103.0,0.01135035]
[1769505426633,0.0002205,88118.0,88107.0,0.02473578]
[1769505427466,0.0002205,88118.0,88098.0,0.38524873]
[1769505427467,0.37508805,88117.0,88099.0,0.02473578]
[1769505427670,0.0002205,88118.0,88100.0,0.38524873]
[1769505428082,0.0002205,88118.0,88101.0,0.02473578]
[1769505428309,0.37530855,88118.0,88101.0,0.02473578]
[1769505429079,0.37530855,88118.0,88101.0,0.39659933]
[1769505429296,0.37530855,88118.0,88102.0,0.02473578]
[1769505431184,0.0002205,88118.0,88104.0,0.02473578]
[1769505431519,0.0002205,88118.0,88106.0,0.02473578]
[1769505432584,0.0002205,88118.0,88101.0,0.0113506]
[1769505432585,0.37548805,88126.0,88112.0,0.01134919]
[1769505432796,0.0004,88126.0,88118.0,0.02488277]
[1769505433010,0.0004,88126.0,88105.0,0.01135009]
[1769505433011,0.02273425,88124.0,88101.0,0.0113506]
[1769505433214,0.0004,88126.0,88101.0,0.0113506]
[1769505433215,0.37508805,88119.0,88101.0,0.0113506]
[1769505433430,0.37508805,88119.0,88099.0,0.02473578]
[1769505433635,0.37508805,88119.0,88099.0,0.01135086]
[1769505433836,0.37508805,88119.0,88100.0,0.02473578]
[1769505434031,0.37508805,88119.0,88101.0,0.02473578]
[1769505437500,0.3978223,88119.0,88101.0,0.02473578]
[1769505438124,0.02273425,88118.0,88097.0,0.43972331]
[1769505438458,0.3978223,88115.0,88097.0,0.38524873]
[1769505439832,0.3978223,88115.0,88097.0,0.39659985]
[1769505440016,0.3978223,88115.0,88097.0,0.40998451]
[1769505440486,0.33806943,88110.0,88097.0,0.40998451]
[1769505440780,0.33806943,88110.0,88097.0,0.02473578]
[1769505440997,0.33806943,88110.0,88080.0,0.02473578]
[1769505440998,0.37508805,88106.0,88080.0,0.02473578]
[1769505441215,0.37508805,88095.0,88080.0,0.02473578]
[1769505441429,0.02273425,88094.0,88075.0,0.01135395]
[1769505441606,0.02273425,88094.0,88075.0,0.06812367]
[1769505441607,0.3978223,88094.0,88075.0,0.06812367]
[1769505441806,0.3978223,88094.0,88078.0,0.01135357]
[1769505442052,0.3978223,88094.0,88079.0,0.01135344]
[1769505442459,0.3978223,88094.0,88078.0,0.01135357]
[1769505442590,0.3978223,88094.0,88079.0,0.01135344]
[1769505443373,0.3978223,88094.0,88077.0,0.0113537]
[1769505443496,0.3978223,88094.0,88078.0,0.01135357]
[1769505443969,0.3978223,88094.0,88079.0,0.01135344]
[1769505444176,0.3978223,88094.0,88075.0,0.39773149]
[1769505444567,0.3978223,88094.0,88075.0,0.40908544]
[1769505444766,0.3978223,88094.0,88076.0,0.01135383]
[1769505445191,0.3978223,88094.0,88076.0,0.03389245]
[1769505445801,0.3978223,88094.0,88079.0,0.01135344]
[1769505446198,0.3978223,88094.0,88076.0,0.03389245]
[1769505446404,0.3978223,88094.0,88077.0,0.0113537]
[1769505446809,0.3978223,88094.0,88077.0,0.02253862]
[1769505447229,0.45395962,88094.0,88077.0,0.02253862]
[1769505447426,0.45395962,88094.0,88071.0,0.02253862]
[1769505447427,0.37756682,88089.0,88071.0,0.02253862]
[1769505447636,0.40180316,88089.0,88071.0,0.02253862]
[1769505448487,0.40180316,88089.0,88073.0,0.01135421]
[1769505448656,0.40180316,88089.0,88072.0,0.01135434]
[1769505448860,0.40180316,88089.0,88071.0,0.03389309]
[1769505449055,0.40180316,88089.0,88072.0,0.01135434]
[1769505449264,0.40180316,88089.0,88071.0,0.03389309]
[1769505449850,0.40180316,88089.0,88072.0,0.01135434]
[1769505450392,0.40180316,88089.0,88071.0,0.02253862]
[1769505450598,0.40180316,88089.0,88071.0,0.03389309]
[1769505450973,0.40180316,88089.0,88071.0,0.01135447]
[1769505451186,0.40180316,88089.0,88072.0,0.02253862]
[1769505451796,0.37756682,88089.0,88072.0,0.02253862]
[1769505452017,0.39087054,88089.0,88072.0,0.02253862]
[1769505453790,0.37756682,88089.0,88070.0,0.33806783]
[1769505454110,0.38187227,88087.0,88070.0,0.33806783]
[1769505454714,0.38187227,88087.0,88068.0,0.02284727]
[1769505455073,0.38187227,88087.0,88070.0,0.33806783]
[1769505456893,0.38187227,88087.0,88068.0,0.02284727]
[1769505457181,0.37756682,88085.0,88070.0,0.33806783]
[1769505457351,0.37756682,88085.0,88068.0,0.02284727]
[1769505458670,0.37756682,88085.0,88070.0,0.33806783]
[1769505459630,0.37756682,88085.0,88068.0,0.02284727]
[1769505461091,0.37756682,88085.0,88067.0,0.01135499]
[1769505461092,0.37756682,88085.0,88070.0,0.33806783]
[1769505461287,0.37756682,88085.0,88070.0,0.37891046]
[1769505461486,0.37756682,88085.0,88070.0,0.33806783]
[1769505461650,0.37756682,88085.0,88071.0,0.04084263]
[1769505464592,0.37756682,88085.0,88071.0,0.01808818]
[1769505468898,0.37756682,88085.0,88071.0,0.02944265]
[1769505469120,0.33806783,88110.0,88071.0,0.02944265]
[1769505469121,0.11664,88098.0,88076.0,0.03846321]
[1769505469338,0.37756682,88097.0,88076.0,0.03846321]
[1769505470404,0.37756682,88089.0,88076.0,0.03846321]
[1769505477434,0.37756682,88089.0,88069.0,0.02477228]
[1769505478952,0.01859969,88088.0,88069.0,0.02477228]
[1769505479170,0.33185536,88087.0,88069.0,0.02477228]
[1769505481148,0.33185536,88087.0,88069.0,0.36431499]
[1769505481291,0.33185536,88087.0,88070.0,0.02477228]
[1769505486324,0.33185536,88079.0,88063.0,0.0002625]
[1769505486546,0.33806783,88080.0,88063.0,0.0002625]
[1769505486547,0.33185536,88073.0,88063.0,0.0002625]
[1769505488320,0.33185536,88073.0,88063.0,0.0001974]
[1769505488646,0.33806783,88073.0,88063.0,0.0001974]
[1769505488901,0.33185536,88072.0,88055.0,0.0002262]
[1769505489255,0.66992319,88070.0,88055.0,0.0002262]
[1769505490222,0.33185536,88070.0,88055.0,0.0002262]
[1769505490431,0.33185536,88068.0,88055.0,0.0002262]
[1769505491450,0.35666535,88068.0,88055.0,0.0002262]
[1769505493360,0.35666535,88068.0,88055.0,0.01158273]
[1769505493534,0.35666535,88068.0,88055.0,0.0002262]
[1769505494693,0.35666535,88068.0,88055.0,0.01158273]
[1769505495544,0.35666535,88068.0,88055.0,0.0002262]
[1769505496465,0.33185536,88068.0,88055.0,0.0002262]
[1769505497321,0.33185536,88066.0,88055.0,0.0002262]
[1769505497532,0.33185536,88064.0,88055.0,0.0002262]
[1769505504620,0.3545162,88064.0,88055.0,0.0002262]
[1769505507084,0.4237746,88064.0,88055.0,0.0002262]
[1769505507306,0.3545162,88064.0,88055.0,0.0002262]
[1769505512063,0.33806783,88070.0,88055.0,0.0002262]
[1769505513607,0.33824145,88070.0,88055.0,0.0002262]
[1769505514410,0.1,88068.0,88055.0,0.0002262]
[1769505516547,0.35399061,88089.0,88068.0,0.02455025]
[1769505516786,0.33824145,88090.0,88072.0,0.02455025]
[1769505516992,0.33824145,88090.0,88073.0,0.32075934]
[1769505517143,0.66957122,88090.0,88073.0,0.32075934]
[1769505517351,0.02266084,88088.0,88073.0,0.32075934]
[1769505517754,0.02266084,88088.0,88072.0,0.02455025]
[1769505517956,0.35399061,88088.0,88072.0,0.02455025]
[1769505518893,0.34205911,88088.0,88072.0,0.02455025]
[1769505520443,0.34205911,88088.0,88065.0,0.0567761]
[1769505520444,0.33132977,88081.0,88060.0,0.33211523]
[1769505520646,0.33132977,88081.0,88062.0,0.32075934]
[1769505520834,0.33132977,88081.0,88065.0,0.02455025]
[1769505521039,0.0002262,88102.0,88066.0,0.02455025]
[1769505521260,0.33824145,88090.0,88069.0,0.32075934]
[1769505521464,0.02266084,88088.0,88070.0,0.32075934]
[1769505521668,0.35399061,88088.0,88070.0,0.32075934]
[1769505522951,0.33132977,88088.0,88070.0,0.32075934]
[1769505523181,0.02266084,88087.0,88070.0,0.32075934]
[1769505523622,0.69223206,88080.0,88061.0,0.01135576]
[1769505523831,0.69223206,88080.0,88061.0,0.3321151]
[1769505524047,0.69223206,88080.0,88063.0,0.32075934]
[1769505524482,0.69223206,88080.0,88063.0,0.34530959]
[1769505525980,0.02266084,88080.0,88064.0,0.32075934]
[1769505526194,0.33132977,88086.0,88060.0,0.34959734]
[1769505526195,0.35399061,88086.0,88066.0,0.32075934]
[1769505526408,0.33132977,88084.0,88066.0,0.3443346]
[1769505526619,0.02266084,88083.0,88066.0,0.3443346]
[1769505527069,0.02266084,88079.0,88059.0,0.32075934]
[1769505527288,0.33824145,88070.0,88059.0,0.32075934]
[1769505527504,0.33824145,88070.0,88055.0,0.0002262]
[1769505527505,0.02266084,88069.0,88055.0,0.0002262]
[1769505527910,0.02266084,88069.0,88055.0,0.32098554]
[1769505530010,0.02266084,88069.0,88055.0,0.32088313]
[1769505530977,0.02266084,88069.0,88055.0,0.33223966]
[1769505531183,0.02266084,88069.0,88055.0,0.32769833]
[1769505531390,0.02266084,88069.0,88055.0,0.32088313]
[1769505533189,0.02266084,88069.0,88055.0,0.31973387]
[1769505534427,0.02434419,88067.0,88048.0,0.01135744]
[1769505534668,0.02434419,88065.0,88048.0,0.01135744]
[1769505534989,0.02434419,88065.0,88048.0,0.34105602]
[1769505535191,0.02434419,88065.0,88049.0,0.01135731]
[1769505535393,0.02434419,88065.0,88049.0,0.34105589]
[1769505535961,0.02434419,88065.0,88049.0,0.01135731]
[1769505536108,0.02434419,88065.0,88050.0,0.01135718]
[1769505536306,0.02434419,88065.0,88051.0,0.01135705]
[1769505536545,0.02434419,88065.0,88050.0,0.01135718]
[1769505536749,0.02434419,88065.0,88050.0,0.34959863]
[1769505537344,0.02434419,88065.0,88050.0,0.33824145]
[1769505537553,0.02434419,88065.0,88050.0,0.34959863]
[1769505537714,0.02434419,88065.0,88051.0,0.01135705]
[1769505537933,0.02434419,88065.0,88052.0,0.01135692]
[1769505538365,0.02434419,88065.0,88051.0,0.01135705]
[1769505538784,0.02434419,88065.0,88050.0,0.34959863]
[1769505538995,0.02434419,88065.0,88051.0,0.01135705]
[1769505539401,0.02434419,88065.0,88048.0,0.01135744]
[1769505539631,0.02434419,88065.0,88050.0,0.33824145]
[1769505540004,0.02434419,88065.0,88050.0,0.34959863]
[1769505540463,0.02434419,88065.0,88050.0,0.33824145]
[1769505541541,0.02434419,88065.0,88048.0,0.01135744]
[1769505541740,0.02434419,88065.0,88050.0,0.33824145]
[1769505542151,0.02434419,88065.0,88051.0,0.34105563]
[1769505542368,0.02434419,88065.0,88047.0,0.06814424]
[1769505542369,0.31150893,88064.0,88045.0,0.01135782]
[1769505542572,0.02434419,88063.0,88046.0,0.01135769]
[1769505542773,0.02434419,88063.0,88047.0,0.01135757]
[1769505542987,0.0002262,88088.0,88055.0,0.34105511]
[1769505542988,0.02434419,88078.0,88055.0,0.34105511]
[1769505543319,0.02434419,88075.0,88056.0,0.0113564]
[1769505543568,0.02434419,88075.0,88056.0,0.32969858]
[1769505543717,0.02434419,88074.0,88056.0,0.32969858]
[1769505544045,0.02434419,88072.0,88056.0,0.32969858]
[1769505544699,0.31150893,88072.0,88056.0,0.32969858]
[1769505544872,0.02434419,88071.0,88056.0,0.32969858]
[1769505546099,0.31150893,88071.0,88052.0,0.03442106]
[1769505546237,0.02434419,88070.0,88052.0,0.03442106]
[1769505546669,0.02434419,88070.0,88053.0,0.01135679]
[1769505547007,0.02434419,88070.0,88052.0,0.36411964]
[1769505547215,0.02434419,88070.0,88052.0,0.35276272]
[1769505547430,0.02434419,88070.0,88050.0,0.33824145]
[1769505547431,0.02434419,88068.0,88043.0,0.01135808]
[1769505547635,0.02434419,88061.0,88043.0,0.01248474]
[1769505547837,0.31150893,88059.0,88044.0,0.01135795]
[1769505548053,0.02434419,88058.0,88044.0,0.01135795]
[1769505548458,0.02434419,88058.0,88046.0,0.01135769]
[1769505548665,0.02434419,88058.0,88045.0,0.01135782]
[1769505548965,0.02434419,88058.0,88046.0,0.012485]
[1769505551168,0.33824145,88070.0,88046.0,0.012485]
[1769505551352,0.02434419,88066.0,88047.0,0.01135757]
[1769505551555,0.02434419,88064.0,88048.0,0.00112728]
[1769505551739,0.02434419,88063.0,88048.0,0.00112728]
[1769505552184,0.02434419,88063.0,88048.0,0.01248472]
[1769505552532,0.02434419,88063.0,88050.0,0.01135718]
[1769505552715,0.02728,88088.0,88050.0,0.01135718]
[1769505552716,0.11668,88079.0,88053.0,0.34105537]
[1769505552879,0.31150893,88076.0,88056.0,0.0113564]
[1769505553205,0.33585312,88074.0,88057.0,0.00112716]
[1769505553427,0.31150893,88083.0,88060.0,0.33824145]
[1769505553624,0.02434419,88078.0,88060.0,0.66794003]
[1769505553832,0.02434419,88076.0,88060.0,0.66794003]
[1769505553987,0.31150893,88075.0,88059.0,0.02306414]
[1769505554198,0.02434419,88074.0,88057.0,0.01135628]
[1769505554398,0.02434419,88074.0,88056.0,0.0113564]
[1769505554801,0.02434419,88074.0,88055.0,0.32969858]
[1769505555006,0.33585312,88074.0,88055.0,0.34105511]
[1769505555609,0.02434419,88073.0,88055.0,0.34105511]
[1769505555902,0.02434419,88073.0,88055.0,0.32969858]
[1769505556305,0.02434419,88073.0,88056.0,0.0068152]
[1769505556507,0.02434419,88073.0,88055.0,0.32969858]
[1769505556713,0.02434419,88073.0,88055.0,0.34105511]
[1769505557413,0.02434419,88073.0,88055.0,0.32969858]
[1769505558425,0.02434419,88073.0,88055.0,0.34105511]
[1769505558584,0.02434419,88073.0,88055.0,0.32969858]
[1769505559003,0.31150893,88073.0,88055.0,0.32969858]
[1769505559346,0.31150893,88067.0,88050.0,0.34959863]
[1769505559555,0.31150893,88067.0,88051.0,0.01135705]
[1769505559556,0.33585312,88067.0,88051.0,0.01135705]
[1769505559976,0.33585312,88067.0,88050.0,0.34959863]
[1769505560394,0.33585312,88067.0,88050.0,0.33824145]
[1769505562135,0.33585312,88067.0,88050.0,0.34959863]
[1769505562338,0.33585312,88067.0,88050.0,0.33824145]
[1769505562562,0.33585312,88067.0,88050.0,0.34959863]
[1769505562769,0.33585312,88067.0,88050.0,0.33824145]
[1769505563403,0.11668,88086.0,88047.0,0.01135757]
[1769505563404,0.29032975,88065.0,88047.0,0.01135757]
[1769505563558,0.02336064,88062.0,88047.0,0.01135757]
[1769505563762,0.02336064,88060.0,88047.0,0.01135757]
[1769505564215,0.02336064,88060.0,88050.0,0.33824145]
[1769505565210,0.33824145,88070.0,88050.0,0.33824145]
[1769505565437,0.02427138,88078.0,88050.0,0.33824145]
[1769505565641,0.30924979,88075.0,88050.0,0.33824145]
[1769505565845,0.30924979,88073.0,88052.0,0.01135692]
[1769505565996,0.30924979,88071.0,88052.0,0.01135692]
[1769505566203,0.30924979,88070.0,88052.0,0.01135692]
[1769505566420,0.02427138,88069.0,88052.0,0.01135692]
[1769505566621,0.33352117,88069.0,88050.0,0.33824145]
[1769505566985,0.02427138,88067.0,88050.0,0.34959863]
[1769505567312,0.33352117,88067.0,88050.0,0.34959863]
[1769505567520,0.33352117,88067.0,88050.0,0.33824145]
[1769505567767,0.33352117,88067.0,88050.0,0.34959863]
[1769505568370,0.33352117,88067.0,88051.0,0.01135705]
[1769505569507,0.33352117,88067.0,88050.0,0.34959863]
[1769505569806,0.33352117,88067.0,88051.0,0.01135705]
[1769505570222,0.02427138,88067.0,88054.0,0.01135666]
[1769505570448,0.02427138,88067.0,88051.0,0.30174501]
[1769505572614,0.02427138,88067.0,88052.0,0.01135692]
[1769505573044,0.02427138,88067.0,88053.0,0.01135679]
[1769505573441,0.02427138,88067.0,88052.0,0.01135692]
[1769505573684,0.02427138,88067.0,88051.0,0.30174501]
[1769505575181,0.02427138,88067.0,88051.0,0.29038796]
[1769505578655,0.02427138,88067.0,88052.0,0.01135692]
[1769505578870,0.02427138,88067.0,88054.0,0.01135666]
[1769505579591,0.02427138,88067.0,88055.0,0.01135653]
[1769505579770,0.02427138,88067.0,88056.0,0.0113564]
[1769505580113,0.30924979,88070.0,88053.0,0.05678398]
[1769505580295,0.33352117,88070.0,88054.0,0.01135666]
[1769505580505,0.33352117,88070.0,88055.0,0.01135653]
[1769505581126,0.33352117,88070.0,88051.0,0.29038796]
[1769505581326,0.33352117,88070.0,88051.0,0.32621947]
[1769505581489,0.33352117,88070.0,88053.0,0.01135679]
[1769505581694,0.33352117,88070.0,88054.0,0.01135666]
[1769505584445,0.33352117,88070.0,88053.0,0.01135679]
[1769505585028,0.33352117,88070.0,88052.0,0.01135692]
[1769505585235,0.67173593,88070.0,88052.0,0.01135692]
[1769505585434,0.33352117,88070.0,88053.0,0.01135679]
[1769505586147,0.33352117,88070.0,88054.0,0.01135666]
[1769505586442,0.33352117,88070.0,88053.0,0.01135679]
[1769505586785,0.33352117,88070.0,88054.0,0.01135666]
[1769505587207,0.33335931,88070.0,88054.0,0.01135666]
[1769505589384,0.33335931,88070.0,88053.0,0.01135679]
[1769505589779,0.33335931,88070.0,88054.0,0.01135666]
[1769505589990,0.33335931,88070.0,88055.0,0.01135653]
[1769505590910,0.33335931,88070.0,88054.0,0.01135666]
[1769505591133,0.30908793,88070.0,88055.0,0.01135653]
[1769505591403,0.02427138,88069.0,88054.0,0.01135666]
[1769505591890,0.02427138,88069.0,88055.0,0.01135653]
[1769505592188,0.02427138,88069.0,88054.0,0.01135666]
[1769505592542,0.02427138,88069.0,88056.0,0.0113564]
[1769505593445,0.02427138,88069.0,88058.0,0.00143682]
[1769505593647,0.02427138,88069.0,88057.0,0.00143682]
[1769505594545,0.02427138,88069.0,88057.0,0.0127931]
[1769505594754,0.02427138,88069.0,88057.0,0.00143682]
[1769505596172,0.02427138,88069.0,88057.0,0.00256994]
[1769505597946,0.02427138,88069.0,88057.0,0.01392622]
[1769505598547,0.02427138,88069.0,88058.0,0.01135615]
[1769505598751,0.02354365,88083.0,88064.0,0.29290615]
[1769505598960,0.30214309,88083.0,88064.0,0.29290615]
[1769505599176,0.02354365,88081.0,88064.0,0.30426152]
[1769505599361,0.02354365,88081.0,88067.0,0.30426114]
[1769505599788,0.02354365,88081.0,88067.0,0.29290615]
[1769505600211,0.02354365,88081.0,88070.0,0.33821476]
[1769505600426,0.02354365,88081.0,88067.0,0.30426114]
[1769505600811,0.02354365,88081.0,88067.0,0.29290615]
[1769505600991,0.02354365,88081.0,88067.0,0.30426114]
[1769505601396,0.02354365,88081.0,88067.0,0.29290615]
[1769505601631,0.02354365,88081.0,88064.0,0.01135537]
[1769505601791,0.02354365,88081.0,88065.0,0.01135524]
[1769505602196,0.02354365,88081.0,88067.0,0.01135499]
[1769505603195,0.02354365,88081.0,88068.0,0.01135486]
[1769505603395,0.02354365,88081.0,88069.0,0.01135473]
[1769505603610,0.02354365,88081.0,88070.0,0.0113546]
[1769505603820,0.02354365,88081.0,88068.0,0.01135486]
[1769505604229,0.02354365,88081.0,88069.0,0.01135473]
[1769505604782,0.02354365,88081.0,88067.0,0.01135499]
[1769505605120,0.02354365,88081.0,88068.0,0.01135486]
[1769505607490,0.02354365,88081.0,88069.0,0.01135473]
[1769505607691,0.02354365,88081.0,88068.0,0.01135486]
[1769505607921,0.02354365,88081.0,88065.0,0.30426139]
[1769505608125,0.02354365,88081.0,88066.0,0.01135512]
[1769505609014,0.02354365,88081.0,88067.0,0.01135499]
[1769505609440,0.02354365,88081.0,88070.0,0.0113546]
[1769505609656,0.02354365,88081.0,88069.0,0.0681282]
[1769505609657,0.02354365,88081.0,88069.0,0.01135473]
[1769505609869,0.02354365,88081.0,88070.0,0.0113546]
[1769505610587,0.02354365,88081.0,88069.0,0.01135473]
[1769505610993,0.02354365,88081.0,88069.0,0.00226595]
[1769505611972,0.02354365,88081.0,88069.0,0.01362068]
[1769505612182,0.02354365,88081.0,88069.0,0.00226595]
[1769505612416,0.02354365,88081.0,88070.0,0.33821476]
[1769505612541,0.02354365,88081.0,88068.0,0.01135486]
[1769505612959,0.02354365,88081.0,88069.0,0.01135473]
[1769505613391,0.02354365,88081.0,88067.0,0.30426114]
[1769505613581,0.02354365,88081.0,88068.0,0.01135486]
[1769505613788,0.02354365,88081.0,88067.0,0.30426114]
[1769505613989,0.0123,88070.0,88067.0,0.30426114]
[1769505614678,0.0123,88070.0,88067.0,0.29290615]
[1769505615942,0.0123,88070.0,88066.0,0.01135512]
[1769505617718,0.0123,88070.0,88067.0,0.01135499]
[1769505619709,0.0123,88070.0,88065.0,0.01135524]
[1769505620118,0.0123,88070.0,88066.0,0.01135512]
[1769505620409,0.0123,88070.0,88065.0,0.01135524]
[1769505620660,0.0123,88070.0,88066.0,0.01135512]
[1769505620904,0.0123,88070.0,88064.0,0.01135537]
[1769505621145,0.0123,88070.0,88065.0,0.01135524]
[1769505621343,0.0123,88070.0,88060.0,0.33821476]
[1769505621344,0.00999999,88065.0,88055.0,0.01135653]
[1769505621592,0.00999999,88065.0,88057.0,0.01135628]
[1769505621812,0.0123,88070.0,88057.0,0.01135628]
[1769505622067,0.0123,88070.0,88058.0,0.01135615]
[1769505622262,0.0123,88070.0,88057.0,0.01135628]
[1769505622471,0.0123,88070.0,88058.0,0.01135615]
[1769505622671,0.054753,88070.0,88056.0,0.0113564]
[1769505623104,0.054753,88070.0,88057.0,0.01135628]
[1769505623779,0.054753,88070.0,88054.0,0.12913231]
[1769505623985,0.054753,88070.0,88055.0,0.01135653]
[1769505625221,0.054753,88070.0,88056.0,0.0113564]
[1769505625435,0.054753,88070.0,88054.0,0.12913231]
[1769505625706,0.054753,88070.0,88052.0,0.29290615]
[1769505625707,0.04020342,88068.0,88052.0,0.29290615]
[1769505625920,0.04020342,88068.0,88052.0,0.30426307]
[1769505626137,0.04020342,88068.0,88053.0,0.01135679]
[1769505626822,0.04020342,88068.0,88055.0,0.01135653]
[1769505627029,0.04020342,88068.0,88053.0,0.01135679]
[1769505627453,0.04020342,88068.0,88052.0,0.29290615]
[1769505627672,0.27891966,88066.0,88052.0,0.01135692]
[1769505627876,0.03795384,88065.0,88052.0,0.01135692]
[1769505628057,0.03795384,88065.0,88051.0,0.01156525]
[1769505628058,0.27891966,88062.0,88051.0,0.0002082]